fUSD/lending_fUSD_20240113
["ID","MTS","AMOUNT","RATE_DAILY","PERIOD"]
[311447150,1705133440628,-200.13200503,0.00022998,2]
[311447151,1705133440637,-245.70688159,0.00022998,2]
[311447152,1705133440646,-3293.04376977,0.00022999,2]
[311447153,1705133440655,-150.0,0.00022999,2]
[311447154,1705133440665,-150.0,0.00022999,2]
[311447155,1705133440674,-150.0,0.00022999,2]
[311447156,1705133440683,-150.0,0.00022999,2]
[311447157,1705133440692,-150.0,0.00022999,2]
[311447158,1705133440702,-150.0,0.00022999,2]
[311447159,1705133440711,-150.0,0.00022999,2]
[311447160,1705133440720,-150.0,0.00022999,2]
[311447161,1705133440729,-150.0,0.00022999,2]
[311447162,1705133440738,-150.0,0.00022999,2]
[311447163,1705133440747,-140869.53448873,0.00023,2]
[311447164,1705133440757,-710.46,0.00023,2]
[311447165,1705133440766,-150.0,0.00023,2]
[311447166,1705133440775,-150.0,0.00023,2]
[311447167,1705133440785,-151.015,0.00023,2]
[311447168,1705133440794,-200.155,0.00023,2]
[311447169,1705133440803,-150.185,0.00023,2]
[311447170,1705133440815,-150.0,0.00023,2]
[311447171,1705133440826,-273.187,0.00023,2]
[311447172,1705133440836,-738.13,0.00023,2]
[311447173,1705133440846,-10292309.90620312,0.00023,2]
[311447179,1705133441641,-4798.31658053,0.00023,2]
[311447194,1705133443091,-603.11086069,0.00022052,2]
[311447195,1705133443106,-1697.80990666,0.00023,2]
[311447196,1705133444361,-1989.74753622,0.00022999,2]
[311447197,1705133444373,-815.71311601,0.00022999,2]
[311447198,1705133444382,-2113.23607068,0.00023,2]
[311447199,1705133444394,-2924.28505533,0.00023,2]
[311447200,1705133444413,-169327.46855315,0.00023,2]
[311447201,1705133444457,-499.99,0.00022876,2]
[311447202,1705133444466,-741.69981186,0.00023,2]
[311447203,1705133444477,-977.2198747,0.00023,2]
[311447204,1705133444489,-713.5794056,0.00023,2]
[311447205,1705133444519,-23802.98815593,0.00023,2]
[311447215,1705133445732,-603.11086067,0.0002226,2]
[311447216,1705133445741,-825.0,0.00022798,2]
[311447217,1705133445751,-3847.25924909,0.00023,2]
[311447218,1705133445763,-3672.96817087,0.00023,2]
[311447219,1705133459531,1598.02169012,0.00016972,2]
[311447220,1705133462999,3270.33881677,0.00020698,5]
[311447221,1705133471520,978.81049056,0.00016972,2]
[311447222,1705133485077,176.13,0.00022,2]
[311447223,1705133485653,1097.6506,0.00021901,14]
[311447224,1705133538966,177.0,0.00018213,2]
[311447225,1705133542542,672.06,0.00021788,2]
[311447226,1705133623147,200.0,0.00021679,2]
[311447227,1705133629894,2000.0,0.00021884,2]
[311447229,1705133683720,500.0,0.00021918,2]
[311447230,1705133701063,150.0,0.00021823,2]
[311447231,1705133704740,262.85883624,0.00021973,2]
[311447232,1705133711963,163.08,0.00021949,2]
[311447233,1705133740599,153.12458751,0.00021952,2]
[311447234,1705133748983,164.56,0.00021702,2]
[311447235,1705133750168,161.55,0.00021903,2]
[311447236,1705133788336,381.07,0.0001976,2]
[311447237,1705133789375,166.79,0.00021677,2]
[311447238,1705133799995,222.80459909,0.0002183,4]
[311447239,1705133820792,175.23922416,0.00021973,2]
[311447240,1705133852287,58000.0,0.00018695,2]
[311447244,1705133872117,517.73,0.00021599,2]
[311447245,1705133879219,200.0,0.00021599,2]
[311447249,1705133939711,250.0,0.00021578,2]
[311447253,1705133954085,23900.0,0.00021659,2]
[311447254,1705133968889,457.59,0.00021693,2]
[311447256,1705134010675,2490.0866,0.00022877,10]
[311447257,1705134014882,966.2367703,0.00021693,2]
[311447258,1705134018403,1707.57,0.00022,2]
[311447259,1705134020113,38302.2356,0.00021952,2]
[311447261,1705134034829,503.40935733,0.00021693,2]
[311447262,1705134058483,503.40935733,0.00021952,2]
[311447263,1705134063919,1137.54,0.00021673,2]
[311447264,1705134074520,503.40935733,0.00021952,2]
[311447265,1705134092281,503.40935733,0.00021952,2]
[311447266,1705134098550,155.94,0.00021701,2]
[311447267,1705134100449,350.96,0.00022,2]
[311447268,1705134107593,462.35,0.00021693,2]
[311447269,1705134109003,500.0,0.00021918,2]
[311447270,1705134114281,503.40935733,0.00021952,2]
[311447271,1705134132295,503.40935733,0.00021952,2]
[311447272,1705134134030,200.0,0.00021708,2]
[311447273,1705134140101,150.0,0.00021733,2]
[311447274,1705134154277,503.40935733,0.00021952,2]
[311447275,1705134161214,163.08,0.00021902,2]
[311447276,1705134174282,503.40935733,0.00021708,2]
[311447277,1705134192751,503.40935733,0.00021708,2]
[311447278,1705134202423,176.61,0.00021965,2]
[311447279,1705134212735,627.47525476,0.00021708,2]
[311447280,1705134239232,362.01,0.00019847,2]
[311447281,1705134335786,118181.6371,0.00021952,2]
[311447282,1705134348540,258.86,0.00021717,2]
[311447283,1705134395878,427.08,0.00021712,2]
[311447284,1705134433215,633.6342,0.00021952,2]
[311447285,1705134465276,2498.12,0.00021698,2]
[311447287,1705134524989,152.46,0.00021682,2]
[311447291,1705134579193,500.0,0.00021918,2]
[311447292,1705134604030,205.0,0.00021207,2]
[311447298,1705134632310,-160.05,0.00022005,2]
[311447299,1705134632320,-282.62966811,0.0002205,2]
[311447300,1705134632330,-275.8717192,0.00022051,2]
[311447301,1705134632342,-457.3182808,0.00022051,2]
[311447302,1705134632351,-1077.09537923,0.00022051,2]
[311447303,1705134632375,-1475.65458751,0.00022051,2]
[311447304,1705134632386,-2266.33216906,0.00022051,2]
[311447305,1705134632398,-612.37351679,0.00022051,2]
[311447306,1705134632409,-5895.81093346,0.00022051,2]
[311447307,1705134632445,-282.33262533,0.00022051,2]
[311447308,1705134632458,-1154.48370751,0.00022051,2]
[311447309,1705134633497,58000.0,0.00018695,2]
[311447310,1705134637764,-1209.544,0.00022051,2]
[311447311,1705134637873,-1730.33376,0.00022051,2]
[311447312,1705134637886,-7544.52978322,0.00022051,2]
[311447313,1705134638365,-1943.39034191,0.00022051,2]
[311447314,1705134638375,-500.0,0.00022052,2]
[311447315,1705134638385,-5614.9734,0.00022052,2]
[311447316,1705134638395,-1000.0,0.00022052,2]
[311447317,1705134638405,-9414.5450277,0.00022052,2]
[311447318,1705134638520,-10067.1344723,0.00022052,2]
[311447319,1705134638530,-68774.38567511,0.00022052,2]
[311447323,1705134640326,-1142.30717754,0.00022052,2]
[311447324,1705134640337,-2777.58006446,0.00022052,2]
[311447325,1705134640388,-355.32,0.00022052,2]
[311447326,1705134640444,-268.51791053,0.00022052,2]
[311447327,1705134640511,-442.88535438,0.00022052,2]
[311447328,1705134640522,-501.7001713,0.00022052,2]
[311447329,1705134640608,-498.1733841,0.00022052,2]
[311447330,1705134640619,-1807.65857259,0.00022052,2]
[311447339,1705134643418,-516.68256542,0.00022052,2]
[311447340,1705134643430,-875.88894952,0.00022052,2]
[311447341,1705134643441,-687.42428315,0.00022052,2]
[311447342,1705134643575,-1648.37425309,0.00022052,2]
[311447343,1705134643587,-26254.74573881,0.00022052,2]
[311447344,1705134643596,-163.08,0.00022093,2]
[311447345,1705134643605,-362.01,0.00022111,2]
[311447346,1705134643614,-160.05,0.00022188,2]
[311447347,1705134643624,-499.99,0.00022188,2]
[311447348,1705134643635,-505.57519895,0.00022213,2]
[311447349,1705134643645,-155.94,0.00022244,2]
[311447350,1705134643657,-735.36,0.00022255,2]
[311447351,1705134643666,-163.08,0.00022283,2]
[311447352,1705134643675,-1000.0,0.00022308,2]
[311447353,1705134643684,-471.31107766,0.00022308,2]
[311447354,1705134643693,-160.05,0.00022372,2]
[311447355,1705134643702,-163.08,0.00022473,2]
[311447356,1705134643712,-160.05,0.00022555,2]
[311447357,1705134643721,-163.08,0.00022663,2]
[311447358,1705134643731,-427.08,0.00022691,2]
[311447359,1705134643741,-160.05,0.00022738,2]
[311447360,1705134643750,-8650.0,0.0002277,2]
[311447361,1705134643759,-155.94,0.00022786,2]
[311447362,1705134643768,-800.0,0.00022816,2]
[311447363,1705134643778,-163.08,0.00022854,2]
[311447364,1705134643787,-505.57519894,0.000229,2]
[311447365,1705134643796,-2436.4195,0.000229,2]
[311447366,1705134643805,-1769.20558422,0.000229,2]
[311447367,1705134643903,-861.16236143,0.000229,2]
[311447375,1705134645908,-381.37715375,0.000229,2]
[311447376,1705134645917,-5000.0,0.000229,2]
[311447377,1705134645926,-250.0,0.000229,2]
[311447378,1705134645935,-265.580364,0.000229,2]
[311447379,1705134645955,-465.67000015,0.000229,2]
[311447380,1705134645966,-561.424,0.000229,2]
[311447381,1705134645978,-1180.90819831,0.000229,2]
[311447382,1705134645987,-1372.99180169,0.000229,2]
[311447383,1705134646128,-339.12192243,0.000229,2]
[311447384,1705134647089,-0.31044193,0.000229,2]
[311447385,1705134656018,276.95610583,0.00021918,2]
[311447386,1705134656888,1469.06981636,0.00021843,7]
[311447387,1705134657789,5937.60574647,0.00018695,2]
[311447388,1705134660595,875.65524604,0.00021848,2]
[311447389,1705134662224,8353.654265,0.0002194,2]
[311447390,1705134663795,155.46551959,0.0002,2]
[311447391,1705134664756,178.81752813,0.00020468,2]
[311447392,1705134688158,419.55,0.00020162,2]
[311447393,1705134689486,1250.0,0.00022,3]
[311447394,1705134691144,14856.23850883,0.00018602,2]
[311447395,1705134711540,176.13,0.00022,2]
[311447396,1705134714537,845.95712561,0.00022,2]
[311447398,1705134723420,7822.8353,0.00021952,2]
[311447399,1705134734528,264.38817086,0.00022,2]
[311447400,1705134754911,17015.2602,0.00021952,2]
[311447405,1705134785502,3029.2234,0.00021952,2]
[311447406,1705134785680,533.58,0.00021736,2]
[311447412,1705134810516,524.2729987,0.00022,2]
[311447414,1705134811694,-394.78315989,0.00022001,2]
[311447415,1705134811715,-295.236981,0.00022002,2]
[311447416,1705134811738,-76.97985911,0.00022002,2]
[311447419,1705134817932,485.11,0.00021752,2]
[311447426,1705134828271,200.0,0.00021752,2]
[311447429,1705134857352,250.0,0.00021646,2]
[311447430,1705134895920,1000.0,0.00022,2]
[311447431,1705134965638,2000.0,0.00021605,2]
[311447432,1705134993080,871.0,0.00021797,2]
[311447433,1705135009986,151.33,0.00021611,2]
[311447434,1705135014982,151.33,0.00021807,2]
[311447435,1705135044939,1000.0,0.00022,2]
[311447437,1705135120659,160.7,0.00021803,2]
[311447438,1705135136464,398.57,0.00019673,2]
[311447439,1705135136684,398.57,0.00021937,2]
[311447440,1705135167246,369.88,0.00021591,2]
[311447441,1705135184195,1000.0,0.00022,2]
[311447442,1705135244140,266.79,0.00021586,2]
[311447443,1705135277520,1250.0,0.00022,3]
[311447444,1705135327040,176.13,0.00021999,2]
[311447445,1705135361632,500.0,0.00020384,14]
[311447446,1705135361965,500.0,0.00020639,14]
[311447447,1705135362278,500.0,0.00020895,14]
[311447448,1705135362624,500.0,0.00021151,14]
[311447449,1705135362952,500.0,0.00021407,14]
[311447450,1705135363463,500.0,0.00021663,14]
[311447451,1705135363645,500.0,0.00021919,14]
[311447452,1705135363927,500.0,0.00022174,14]
[311447453,1705135364238,500.0,0.0002243,14]
[311447454,1705135364549,500.0,0.00022686,14]
[311447455,1705135364864,500.0,0.00022942,14]
[311447457,1705135414488,156.69,0.00021729,2]
[311447458,1705135414721,156.69,0.0002181,2]
[311447459,1705135414914,156.69,0.0002189,2]
[311447460,1705135415474,156.69,0.00021971,2]
[311447461,1705135466855,153.11,0.00021581,2]
[311447462,1705135469964,500.0,0.00020384,2]
[311447463,1705135470279,500.0,0.00020682,2]
[311447464,1705135470600,500.0,0.0002098,2]
[311447465,1705135471070,500.0,0.00021279,2]
[311447466,1705135471208,500.0,0.00021577,2]
[311447467,1705135471536,500.0,0.00021876,2]
[311447468,1705135521596,500.0,0.00020384,2]
[311447469,1705135521846,500.0,0.00020712,2]
[311447470,1705135522175,500.0,0.0002104,2]
[311447471,1705135522493,500.0,0.00021368,2]
[311447472,1705135522815,500.0,0.00021697,2]
[311447473,1705135579068,358.71,0.00019657,2]
[311447474,1705135579491,358.71,0.00021921,2]
[311447475,1705135624327,452.76,0.00021577,2]
[311447477,1705135700362,266.79,0.00021566,2]
[311447478,1705135724965,704.09,0.00021592,2]
[311447479,1705135817728,12228.1761606,0.00022,2]
[311447480,1705135833364,-295.236981,0.00022003,2]
[311447481,1705135833373,-151.33,0.00022004,2]
[311447482,1705135833383,-166.79,0.00022004,2]
[311447483,1705135833393,-500.0,0.00022025,2]
[311447484,1705135833403,-538.66682176,0.00022051,2]
[311447485,1705135833413,-155.23200746,0.00022051,2]
[311447486,1705135833422,-156.69,0.00022052,2]
[311447487,1705135833431,-3185.89838635,0.00022073,2]
[311447488,1705135833441,-623.07203236,0.00022078,2]
[311447489,1705135833451,-418.39942505,0.00022078,2]
[311447490,1705135833460,-499.99,0.00022111,2]
[311447491,1705135833469,-156.69,0.00022133,2]
[311447492,1705135833478,-500.0,0.00022199,2]
[311447493,1705135833487,-151.33,0.000222,2]
[311447494,1705135833497,-844.16338928,0.00022211,2]
[311447495,1705135833507,-156.69,0.00022214,2]
[311447496,1705135833517,-1320.44573686,0.00022266,2]
[311447497,1705135833526,-156.69,0.00022295,2]
[311447498,1705135833535,-16515.18203127,0.00022307,2]
[311447499,1705135833574,-48.7360714,0.00022307,2]
[311447500,1705135833618,-768.57883996,0.00022307,2]
[311447516,1705135833960,-980.77922571,0.00022307,2]
[311447517,1705135833971,-2503.50548181,0.00022307,2]
[311447518,1705135833983,-644.8767309,0.00022307,2]
[311447519,1705135836201,12228.1761606,0.00022,2]
[311447533,1705135838093,-11422.31843786,0.00022307,2]
[311447534,1705135838103,-2471.83618827,0.00022308,2]
[311447535,1705135838112,-500.0,0.00022353,2]
[311447536,1705135838121,-156.69,0.00022376,2]
[311447537,1705135838131,-151.33,0.00022396,2]
[311447538,1705135838140,-156.69,0.00022457,2]
[311447539,1705135838149,-547.01659378,0.00022495,2]
[311447540,1705135838159,-14800.08068719,0.00022505,2]
[311447541,1705135838317,-2109.99231281,0.00022505,2]
[311447542,1705135838327,-156.69,0.00022537,2]
[311447543,1705135838337,-176.13,0.00022547,2]
[311447544,1705135838346,-452.76,0.00022556,2]
[311447545,1705135838355,-151.33,0.00022593,2]
[311447546,1705135838365,-635.3,0.000226,2]
[311447547,1705135838374,-408.12,0.000226,2]
[311447548,1705135838383,-150.0,0.000226,2]
[311447549,1705135838392,-314.25,0.000226,2]
[311447550,1705135838402,-314.25,0.000226,2]
[311447551,1705135838411,-150.0,0.000226,2]
[311447552,1705135838421,-314.25,0.000226,2]
[311447553,1705135838430,-260.94,0.000226,2]
[311447554,1705135838439,-150.0,0.000226,2]
[311447555,1705135838449,-562.7,0.000226,2]
[311447556,1705135838458,-156.69,0.00022618,2]
[311447557,1705135838467,-500.0,0.00022682,2]
[311447558,1705135838476,-156.69,0.00022699,2]
[311447559,1705135838486,-1320.44573686,0.00022731,2]
[311447560,1705135838495,-325.89877808,0.00022766,2]
[311447561,1705135838504,-277.84755236,0.00022768,2]
[311447562,1705135838514,-3741.00628221,0.00022768,2]
[311447563,1705135838523,-156.69,0.0002278,2]
[311447565,1705135838532,-151.33,0.00022789,2]
[311447567,1705135838541,-577.8909,0.000228,2]
[311447568,1705135838550,-4482.2002,0.000228,2]
[311447570,1705135838559,-1410.6635,0.000228,2]
[311447572,1705135838568,-711.31266388,0.000228,2]
[311447578,1705135838610,-584.62144801,0.000228,2]
[311447848,1705135841237,-91.73508811,0.000228,2]
[311447850,1705135841246,-583.87533611,0.000228,2]
[311447851,1705135841255,-50.74107582,0.000228,2]
[311447910,1705135842928,-307.55623651,0.000228,2]
[311447911,1705135843092,-281.9070592,0.000228,2]
[311447912,1705135843101,-800.0,0.00022816,2]
[311447913,1705135843110,-583.87533611,0.00022825,2]
[311447914,1705135843119,-640.2043715,0.00022847,2]
[311447915,1705135843128,-583.87533611,0.0002285,2]
[311447916,1705135843137,-156.69,0.00022861,2]
[311447917,1705135843146,-640.2043715,0.00022893,2]
[311447918,1705135843155,-9.1731531,0.00022895,2]
[311447919,1705135843167,-490.8268469,0.00022895,2]
[311447920,1705135843176,-526.76372534,0.00022898,2]
[311447921,1705135843185,-5000.0,0.000229,2]
[311447922,1705135843194,-37209.45956844,0.000229,2]
[311447923,1705135843214,-16704.43177901,0.000229,2]
[311447924,1705135843315,-1242.2416935,0.000229,2]
[311447938,1705135847390,-444.12079514,0.00022875,2]
[311447939,1705135847410,-139.75454097,0.00022875,2]
[311447940,1705135847420,-295.236981,0.00022898,2]
[311447941,1705135847430,-294.05751553,0.000229,2]
[311447942,1705135847442,-923.29501141,0.000229,2]
[311447943,1705135847462,-425.400001,0.000229,2]
[311447944,1705135847474,-1241.33229804,0.000229,2]
[311447945,1705135848122,-0.36441456,0.000229,2]
[311447946,1705135848146,-6508.78783957,0.000229,2]
[311447947,1705135848157,-546.006,0.000229,2]
[311447948,1705135848177,-5147.50763889,0.000229,2]
[311447949,1705135848200,-1101.48803666,0.000229,2]
[311447950,1705135848211,-10073.553534,0.000229,2]
[311447951,1705135851732,12228.1761606,0.00022,2]
[311447952,1705135858803,354.14107881,0.00021754,2]
[311447953,1705135866517,446.2755679,0.00020379,2]
[311447955,1705135869736,12228.1761606,0.00022,2]
[311447956,1705135887730,12228.1761606,0.00022,2]
[311447957,1705135904043,250.0,0.00021576,2]
[311447958,1705135905737,12228.1761606,0.00022,2]
[311447959,1705135912434,1309.62074723,0.00021789,2]
[311447960,1705135915302,164.6,0.00021962,2]
[311447961,1705135922085,245.18023284,0.000229,6]
[311447962,1705135927734,12228.1761606,0.00022,2]
[311447963,1705135935195,22475.07,0.00021863,2]
[311447964,1705135939152,176.13,0.00022,2]
[311447965,1705135945736,12228.1761606,0.00022,2]
[311447966,1705135949605,502.5825696,0.00022,2]
[311447967,1705135961733,12228.1761606,0.00022,2]
[311447968,1705135966695,151.95541755,0.0002189,2]
[311447969,1705135981742,7324.03310758,0.00022,2]
[311447970,1705136051859,374.67,0.00019877,2]
[311447972,1705136063240,213.60044722,0.000137,2]
[311447973,1705136064483,984.47133732,0.00022,2]
[311447974,1705136134443,159.55,0.00021784,2]
[311447975,1705136151253,486.77,0.00021771,2]
[311447976,1705136169300,165.97,0.00021771,2]
[311447977,1705136254802,436.72,0.00021689,2]
[311447979,1705136344067,152.98,0.00021714,2]
[311447980,1705136350500,156.68,0.00021865,2]
[311447982,1705136385460,1309.62074723,0.00021948,2]
[311447983,1705136404243,206.0,0.00021748,2]
[311447984,1705136487179,355.93,0.00019787,2]
[311447986,1705136545280,-515.09486573,0.00022001,2]
[311447987,1705136545303,-164.25,0.00022002,2]
[311447988,1705136545325,-355.93,0.00022051,2]
[311447989,1705136545347,-156.68,0.00022093,2]
[311447990,1705136545369,-18997.05844472,0.0002213,2]
[311447991,1705136545389,-295.236981,0.0002213,2]
[311447992,1705136545411,-731.28,0.00022131,2]
[311447993,1705136545432,-713.75,0.00022131,2]
[311447994,1705136545454,-164.6,0.00022206,2]
[311447995,1705136545475,-499.99,0.00022217,2]
[311447996,1705136545497,-152.98,0.00022257,2]
[311447997,1705136545519,-156.68,0.00022321,2]
[311447998,1705136545540,-1309.62074724,0.00022409,2]
[311447999,1705136545562,-164.6,0.0002245,2]
[311448000,1705136545583,-1309.62074724,0.00022475,2]
[311448001,1705136554650,176.13,0.000218,2]
[311448002,1705136555928,176.13,0.00022348,2]
[311448006,1705136598409,454.31,0.0002178,2]
[311448008,1705136631786,157.22,0.00021993,2]
[311448013,1705136713269,650.62,0.00021774,2]
[311448014,1705136731646,990.0,0.00023,7]
[311448015,1705136731931,990.0,0.00023,7]
[311448016,1705136732183,324.570853,0.00023,7]
[311448018,1705136797183,1309.62074724,0.00022489,2]
[311448020,1705136804931,156.68,0.0002194,2]
[311448024,1705136913811,320.33,0.00019882,2]
[311448025,1705136914007,320.33,0.00022146,2]
[311448027,1705137029477,424.02,0.00021817,2]
[311448037,1705137032357,-156.68,0.00022511,2]
[311448038,1705137032366,-226.339,0.000226,2]
[311448090,1705137039438,-786.661,0.000226,2]
[311448092,1705137039449,-500.0,0.00022678,2]
[311448093,1705137039459,-164.6,0.00022694,2]
[311448095,1705137039468,-19110.28636174,0.00022699,2]
[311448097,1705137039477,-1000.0,0.000227,2]
[311448099,1705137039486,-150.0,0.00022766,2]
[311448101,1705137039495,-499.99,0.00022767,2]
[311448103,1705137039504,-150.0,0.0002277,2]
[311448105,1705137039513,-150.0,0.00022772,2]
[311448108,1705137039523,-300.0,0.0002278,2]
[311448110,1705137039532,-200.0,0.00022783,2]
[311448111,1705137039541,-800.0,0.00022783,2]
[311448113,1705137039551,-150.0,0.00022785,2]
[311448116,1705137039560,-150.0,0.00022787,2]
[311448118,1705137039569,-150.0,0.00022794,2]
[311448120,1705137039579,-424.02,0.00022795,2]
[311448122,1705137039589,-311.55128833,0.00022798,2]
[311448124,1705137039599,-369.055015,0.00022799,2]
[311448126,1705137039609,-6654.11247415,0.00022799,2]
[311448128,1705137039618,-152.98,0.00022799,2]
[311448130,1705137039627,-500.0,0.000228,2]
[311448132,1705137039636,-999.0883,0.000228,2]
[311448134,1705137039645,-18059.4457,0.000228,2]
[311448136,1705137039654,-157941.3918,0.000228,2]
[311448138,1705137039664,-307.66575286,0.000228,2]
[311448140,1705137039673,-500.0,0.00022816,2]
[311448142,1705137039683,-200.0,0.00022816,2]
[311448144,1705137039692,-150.0,0.00022819,2]
[311448145,1705137039703,-150.0,0.00022822,2]
[311448147,1705137039712,-1500.0,0.00022841,2]
[311448149,1705137039721,-212.01252672,0.00022843,2]
[311448151,1705137039730,-150.0,0.00022844,2]
[311448153,1705137039739,-293.29955994,0.00022849,2]
[311448156,1705137039749,-307.66575284,0.0002285,2]
[311448157,1705137039758,-212.01252672,0.00022857,2]
[311448160,1705137039768,-150.0,0.00022861,2]
[311448161,1705137039776,-1495.615,0.00022865,2]
[311448163,1705137039785,-212.01252672,0.00022871,2]
[311448165,1705137039794,-150.0,0.00022874,2]
[311448167,1705137039803,-150.0,0.00022879,2]
[311448170,1705137039813,-150.0,0.00022883,2]
[311448172,1705137039822,-205.29749463,0.00022884,4]
[311448173,1705137039832,-332.41924985,0.00022884,2]
[311448176,1705137039843,-152.51301999,0.00022884,2]
[311448178,1705137039852,-1240.64890442,0.00022884,2]
[311448180,1705137039861,-2853.89311874,0.00022884,2]
[311448182,1705137039870,-1893.08104233,0.00022884,2]
[311448183,1705137039880,-17022.91370157,0.00022884,2]
[311448185,1705137039890,-403.53761576,0.00022884,2]
[311448188,1705137039901,-150.0,0.00022885,2]
[311448190,1705137039911,-212.01252672,0.00022886,2]
[311448192,1705137039920,-1500.0,0.00022886,2]
[311448194,1705137039929,-2003.88092356,0.00022892,2]
[311448196,1705137039938,-332.41924985,0.00022892,2]
[311448198,1705137039949,-1240.64890441,0.00022892,2]
[311448200,1705137039958,-2853.89311874,0.00022892,2]
[311448202,1705137039968,-1893.08104232,0.00022892,2]
[311448204,1705137039976,-17022.91370157,0.00022892,2]
[311448206,1705137039985,-332.84754596,0.00022896,2]
[311448208,1705137039994,-189.60327673,0.00022896,2]
[311448210,1705137040006,-262.96284194,0.00022898,2]
[311448212,1705137040015,-303.32016002,0.00022898,2]
[311448214,1705137040025,-155.50563666,0.00022898,2]
[311448216,1705137040034,-245.70688159,0.00022898,2]
[311448217,1705137040042,-200.13200503,0.00022898,2]
[311448220,1705137040051,-2605.00976432,0.00022898,2]
[311448221,1705137040061,-162.79587329,0.00022898,2]
[311448223,1705137040070,-156.24527716,0.00022898,2]
[311448249,1705137040293,-155.97598439,0.00022898,2]
[311448251,1705137040303,-1046.21904895,0.00022898,2]
[311448253,1705137040313,-155.46805855,0.00022898,2]
[311448255,1705137040322,-244.85362809,0.00022899,2]
[311448257,1705137040331,-383.019,0.00022899,2]
[311448259,1705137040340,-5000.0,0.000229,2]
[311448261,1705137040348,-129236.66967931,0.000229,2]
[311448263,1705137040358,-2000.0,0.000229,2]
[311448265,1705137040366,-200.0,0.000229,2]
[311448267,1705137040376,-33895.4964585,0.000229,2]
[311448269,1705137040385,-250.0,0.000229,2]
[311448271,1705137040394,-1390.33,0.000229,2]
[311448273,1705137040402,-16525.6122,0.000229,2]
[311448275,1705137040411,-1563.77451822,0.000229,2]
[311448277,1705137040420,-176.2402856,0.000229,2]
[311448279,1705137040429,-156.84378548,0.000229,2]
[311448281,1705137040438,-156.84378542,0.000229,2]
[311448283,1705137040449,-156.84378542,0.000229,2]
[311448285,1705137040458,-156.84378542,0.000229,2]
[311448286,1705137040469,-156.84378542,0.000229,2]
[311448288,1705137040478,-156.84378542,0.000229,2]
[311448291,1705137040488,-156.84378542,0.000229,2]
[311448293,1705137040498,-156.84378542,0.000229,2]
[311448295,1705137040507,-156.84378542,0.000229,2]
[311448297,1705137040516,-156.84378542,0.000229,2]
[311448299,1705137040525,-156.84378542,0.000229,2]
[311448301,1705137040534,-156.84378542,0.000229,2]
[311448303,1705137040543,-156.84378542,0.000229,2]
[311448305,1705137040552,-212.01252672,0.000229,2]
[311448307,1705137040561,-2003.88092356,0.000229,2]
[311448308,1705137040570,-307.66575284,0.000229,2]
[311448310,1705137040579,-332.41924985,0.000229,2]
[311448313,1705137040590,-1240.64890441,0.000229,2]
[311448315,1705137040599,-2853.89311874,0.000229,2]
[311448317,1705137040608,-1893.08104232,0.000229,2]
[311448319,1705137040618,-17022.91370157,0.000229,2]
[311448321,1705137040627,-187.95872347,0.000229,2]
[311448322,1705137040636,-150.0,0.00022904,2]
[311448325,1705137040645,-1500.0,0.00022905,2]
[311448327,1705137040654,-165488.4529999,0.00022906,2]